[Event "Titled Tuesday Blitz November 16 2021"]
[White "Spata, German"]
[Black "Weetik, Vjacheslav"]
[WhiteFideId "113026"]
[BlackFideId "4153472"]
[WhiteElo "2238"]
[BlackElo "2469"]
[Result "0-1"]
[Round "05"]
[TimeControl "180+1"]
[Date "2021.11.16"]
[WhiteClock "0:00:05"]
[BlackClock "0:00:10"]

1. d4 {[%clk 0:02:58]}  g6 {[%clk 0:02:59]} 2. Nf3 {[%clk 0:02:56]}  Bg7 {[%clk 0:02:58]} 3. Bf4 {[%clk 0:02:56]}  a6 {[%clk 0:02:51]} 4. e3 {[%clk 0:02:55]}  b5 {[%clk 0:02:44]} 5. Be2 {[%clk 0:02:54]}  Bb7 {[%clk 0:02:43]} 6. O-O {[%clk 0:02:53]}  Nf6 {[%clk 0:02:41]} 7. h3 {[%clk 0:02:51]}  O-O {[%clk 0:02:38]} 8. a4 {[%clk 0:02:51]}  b4 {[%clk 0:02:28]} 9. c3 {[%clk 0:02:50]}  bxc3 {[%clk 0:02:11]} 10. Nxc3 {[%clk 0:02:51]}  Nc6 {[%clk 0:02:05]} 11. d5 {[%clk 0:02:36]}  Nb4 {[%clk 0:02:04]} 12. e4 {[%clk 0:02:36]}  e6 {[%clk 0:01:57]} 13. Qb3 {[%clk 0:02:02]}  a5 {[%clk 0:01:53]} 14. Na2 {[%clk 0:02:02]}  Nxe4 {[%clk 0:01:44]} 15. Nxb4 {[%clk 0:02:00]}  axb4 {[%clk 0:01:45]} 16. Qxb4 {[%clk 0:01:49]}  Bxd5 {[%clk 0:01:44]} 17. Be5 {[%clk 0:01:41]}  f6 {[%clk 0:01:38]} 18. Bc3 {[%clk 0:01:36]}  c5 {[%clk 0:01:33]} 19. Qa3 {[%clk 0:01:29]}  Bc6 {[%clk 0:01:32]} 20. a5 {[%clk 0:01:27]}  d5 {[%clk 0:01:27]} 21. a6 {[%clk 0:01:26]}  Qb6 {[%clk 0:01:18]} 22. Ba5 {[%clk 0:01:11]}  Qa7 {[%clk 0:01:18]} 23. Nd2 {[%clk 0:01:09]}  f5 {[%clk 0:01:01]} 24. Nxe4 {[%clk 0:01:03]}  fxe4 {[%clk 0:01:01]} 25. Bg4 {[%clk 0:00:49]}  Bd7 {[%clk 0:00:49]} 26. Rfc1 {[%clk 0:00:47]}  c4 {[%clk 0:00:45]} 27. Qd6 {[%clk 0:00:46]}  Rfe8 {[%clk 0:00:25]} 28. Bc3 {[%clk 0:00:27]}  d4 {[%clk 0:00:20]} 29. Be1 {[%clk 0:00:27]}  Rac8 {[%clk 0:00:19]} 30. Rab1 {[%clk 0:00:12]}  Rc6 {[%clk 0:00:18]} 31. Qb4 {[%clk 0:00:11]}  Qxa6 {[%clk 0:00:17]} 32. Be2 {[%clk 0:00:09]}  d3 {[%clk 0:00:17]} 33. Bd1 {[%clk 0:00:10]}  Bd4 {[%clk 0:00:16]} 34. Bc3 {[%clk 0:00:10]}  e5 {[%clk 0:00:15]} 35. Bxd4 {[%clk 0:00:10]}  exd4 {[%clk 0:00:15]} 36. Ba4 {[%clk 0:00:10]}  Rb6 {[%clk 0:00:14]} 37. Qxc4+ {[%clk 0:00:11]}  Qxc4 {[%clk 0:00:14]} 38. Rxc4 {[%clk 0:00:11]}  Bxa4 {[%clk 0:00:15]} 39. Rxa4 {[%clk 0:00:12]}  e3 {[%clk 0:00:15]} 40. Rxd4 {[%clk 0:00:11]}  e2 {[%clk 0:00:12]} 41. Re1 {[%clk 0:00:08]}  Rb3 {[%clk 0:00:12]} 42. f3 {[%clk 0:00:06]}  Rc8 {[%clk 0:00:11]} 43. Kf2 {[%clk 0:00:06]}  Rc2 {[%clk 0:00:12]} 44. Ke3 {[%clk 0:00:05]}  d2+ {[%clk 0:00:10]} 0-1


[Site "https://www.chess.com"]

[Event "Titled Tuesday Blitz November 16 2021"]
[White "Tabatabaei, M. Amin"]
[Black "Lewtak, Damian"]
[WhiteFideId "12521213"]
[BlackFideId "1141724"]
[WhiteElo "2555"]
[BlackElo "2203"]
[Result "1-0"]
[Round "05"]
[TimeControl "180+1"]
[Date "2021.11.16"]
[WhiteClock "0:00:57"]
[BlackClock "0:00:02"]

1. e4 {[%clk 0:03:00]}  c5 {[%clk 0:03:00]} 2. Nf3 {[%clk 0:03:00]}  d6 {[%clk 0:03:00]} 3. Bb5+ {[%clk 0:02:59]}  Bd7 {[%clk 0:02:56]} 4. Bxd7+ {[%clk 0:02:58]}  Qxd7 {[%clk 0:02:57]} 5. c4 {[%clk 0:02:58]}  a6 {[%clk 0:02:52]} 6. d4 {[%clk 0:02:55]}  Nf6 {[%clk 0:02:48]} 7. Nc3 {[%clk 0:02:55]}  cxd4 {[%clk 0:02:46]} 8. Nxd4 {[%clk 0:02:56]}  Nc6 {[%clk 0:02:45]} 9. O-O {[%clk 0:02:56]}  Rc8 {[%clk 0:02:44]} 10. f3 {[%clk 0:02:53]}  Ne5 {[%clk 0:02:33]} 11. b3 {[%clk 0:02:52]}  b5 {[%clk 0:02:32]} 12. f4 {[%clk 0:02:53]}  Ng6 {[%clk 0:02:31]} 13. Be3 {[%clk 0:02:38]}  bxc4 {[%clk 0:02:21]} 14. bxc4 {[%clk 0:02:39]}  Ng4 {[%clk 0:02:14]} 15. Nf5 {[%clk 0:02:31]}  Nxe3 {[%clk 0:02:07]} 16. Nxe3 {[%clk 0:02:32]}  e6 {[%clk 0:02:07]} 17. Qd4 {[%clk 0:02:32]}  Qc6 {[%clk 0:01:39]} 18. Rab1 {[%clk 0:02:10]}  a5 {[%clk 0:01:16]} 19. Rb6 {[%clk 0:02:07]}  Qc7 {[%clk 0:01:16]} 20. Nb5 {[%clk 0:02:00]}  Qc5 {[%clk 0:01:08]} 21. Qxc5 {[%clk 0:01:57]}  dxc5 {[%clk 0:01:09]} 22. e5 {[%clk 0:01:55]}  Be7 {[%clk 0:01:05]} 23. g3 {[%clk 0:01:53]}  O-O {[%clk 0:01:04]} 24. Rb7 {[%clk 0:01:51]}  Rfd8 {[%clk 0:00:56]} 25. Rd1 {[%clk 0:01:49]}  Rxd1+ {[%clk 0:00:53]} 26. Nxd1 {[%clk 0:01:50]}  f6 {[%clk 0:00:52]} 27. h4 {[%clk 0:01:40]}  h5 {[%clk 0:00:46]} 28. exf6 {[%clk 0:01:35]}  Bxf6 {[%clk 0:00:44]} 29. Kf2 {[%clk 0:01:34]}  Rd8 {[%clk 0:00:40]} 30. Ke2 {[%clk 0:01:34]}  Ne7 {[%clk 0:00:20]} 31. Ne3 {[%clk 0:01:28]}  Nf5 {[%clk 0:00:19]} 32. Nxf5 {[%clk 0:01:27]}  exf5 {[%clk 0:00:20]} 33. Rc7 {[%clk 0:01:26]}  Re8+ {[%clk 0:00:19]} 34. Kf3 {[%clk 0:01:26]}  Bd4 {[%clk 0:00:19]} 35. Nxd4 {[%clk 0:01:09]}  cxd4 {[%clk 0:00:20]} 36. Rc5 {[%clk 0:01:10]}  Re3+ {[%clk 0:00:21]} 37. Kf2 {[%clk 0:01:10]}  Ra3 {[%clk 0:00:22]} 38. Rxf5 {[%clk 0:01:10]}  Rxa2+ {[%clk 0:00:22]} 39. Kf3 {[%clk 0:01:11]}  a4 {[%clk 0:00:22]} 40. Rxh5 {[%clk 0:01:10]}  d3 {[%clk 0:00:20]} 41. Ra5 {[%clk 0:01:07]}  d2 {[%clk 0:00:19]} 42. Ke2 {[%clk 0:01:07]}  a3 {[%clk 0:00:19]} 43. c5 {[%clk 0:01:04]}  Kf7 {[%clk 0:00:18]} 44. c6 {[%clk 0:01:03]}  Ke7 {[%clk 0:00:17]} 45. Ra7+ {[%clk 0:01:02]}  Kd6 {[%clk 0:00:17]} 46. c7 {[%clk 0:01:02]}  Kd7 {[%clk 0:00:17]} 47. f5 {[%clk 0:01:03]}  Ra1 {[%clk 0:00:12]} 48. Kxd2 {[%clk 0:01:02]}  a2 {[%clk 0:00:13]} 49. Kc2 {[%clk 0:01:03]}  Rg1 {[%clk 0:00:12]} 50. Rxa2 {[%clk 0:01:03]}  Rxg3 {[%clk 0:00:12]} 51. Ra7 {[%clk 0:00:59]}  Rg4 {[%clk 0:00:10]} 52. h5 {[%clk 0:00:58]}  Rg5 {[%clk 0:00:10]} 53. f6 {[%clk 0:00:57]}  gxf6 {[%clk 0:00:08]} 54. h6 {[%clk 0:00:57]}  Rh5 {[%clk 0:00:07]} 55. h7 {[%clk 0:00:57]}  Kc8 {[%clk 0:00:02]} 1-0


[Site "https://www.chess.com"]

[Event "Titled Tuesday Blitz November 16 2021"]
[White "Tologon tegin, Semetei"]
[Black "Maly, Alexey"]
[WhiteFideId "13800574"]
[BlackFideId "14103184"]
[WhiteElo "2224"]
[BlackElo "2294"]
[Result "1-0"]
[Round "05"]
[TimeControl "180+1"]
[Date "2021.11.16"]
[WhiteClock "0:00:08"]
[BlackClock "0:00:06"]

1. e4 {[%clk 0:03:00]}  c6 {[%clk 0:02:59]} 2. d4 {[%clk 0:02:46]}  d5 {[%clk 0:03:00]} 3. e5 {[%clk 0:02:47]}  Bf5 {[%clk 0:02:59]} 4. h4 {[%clk 0:02:47]}  h5 {[%clk 0:02:59]} 5. Nf3 {[%clk 0:02:47]}  e6 {[%clk 0:02:59]} 6. c4 {[%clk 0:02:46]}  Ne7 {[%clk 0:02:58]} 7. Nc3 {[%clk 0:02:43]}  dxc4 {[%clk 0:02:56]} 8. Bxc4 {[%clk 0:02:42]}  Nd7 {[%clk 0:02:57]} 9. Bg5 {[%clk 0:02:39]}  Nb6 {[%clk 0:02:56]} 10. Be2 {[%clk 0:02:34]}  Qd7 {[%clk 0:02:57]} 11. O-O {[%clk 0:02:30]}  Ned5 {[%clk 0:02:57]} 12. Qb3 {[%clk 0:02:27]}  Be7 {[%clk 0:02:55]} 13. Rfd1 {[%clk 0:02:18]}  O-O {[%clk 0:02:52]} 14. Rac1 {[%clk 0:02:16]}  Rfd8 {[%clk 0:02:43]} 15. a3 {[%clk 0:02:09]}  Rac8 {[%clk 0:02:42]} 16. Bxe7 {[%clk 0:02:03]}  Qxe7 {[%clk 0:02:42]} 17. Ng5 {[%clk 0:02:03]}  Nxc3 {[%clk 0:02:38]} 18. Qxc3 {[%clk 0:01:59]}  Bg6 {[%clk 0:02:36]} 19. Bd3 {[%clk 0:01:49]}  Nd5 {[%clk 0:02:32]} 20. Qd2 {[%clk 0:01:43]}  Bxd3 {[%clk 0:02:31]} 21. Qxd3 {[%clk 0:01:43]}  g6 {[%clk 0:02:31]} 22. Qg3 {[%clk 0:01:37]}  Kg7 {[%clk 0:02:22]} 23. Ne4 {[%clk 0:01:32]}  Rc7 {[%clk 0:02:19]} 24. Nd6 {[%clk 0:01:27]}  Nb6 {[%clk 0:02:11]} 25. Qf4 {[%clk 0:01:25]}  Nc8 {[%clk 0:02:08]} 26. Ne4 {[%clk 0:01:24]}  Nb6 {[%clk 0:02:02]} 27. g3 {[%clk 0:01:22]}  Rcd7 {[%clk 0:01:57]} 28. Ng5 {[%clk 0:00:52]}  Nd5 {[%clk 0:01:40]} 29. Qf3 {[%clk 0:00:52]}  Nb6 {[%clk 0:01:40]} 30. Qf4 {[%clk 0:00:47]}  Nd5 {[%clk 0:01:35]} 31. Qe4 {[%clk 0:00:44]}  Nc7 {[%clk 0:01:32]} 32. Rd3 {[%clk 0:00:35]}  Nb5 {[%clk 0:01:28]} 33. Rcd1 {[%clk 0:00:35]}  c5 {[%clk 0:01:16]} 34. d5 {[%clk 0:00:34]}  exd5 {[%clk 0:01:13]} 35. Rxd5 {[%clk 0:00:35]}  Rxd5 {[%clk 0:01:12]} 36. Rxd5 {[%clk 0:00:35]}  Rxd5 {[%clk 0:01:09]} 37. Qxd5 {[%clk 0:00:36]}  Nd4 {[%clk 0:01:09]} 38. Kg2 {[%clk 0:00:35]}  Ne6 {[%clk 0:01:07]} 39. Ne4 {[%clk 0:00:33]}  b6 {[%clk 0:01:03]} 40. Nf6 {[%clk 0:00:30]}  Nd4 {[%clk 0:00:58]} 41. f4 {[%clk 0:00:29]}  Ne6 {[%clk 0:00:55]} 42. Qa8 {[%clk 0:00:25]}  Nf8 {[%clk 0:00:55]} 43. Kf3 {[%clk 0:00:22]}  c4 {[%clk 0:00:43]} 44. Qc8 {[%clk 0:00:18]}  b5 {[%clk 0:00:40]} 45. Ne8+ {[%clk 0:00:16]}  Kg8 {[%clk 0:00:38]} 46. Nd6 {[%clk 0:00:17]}  Kg7 {[%clk 0:00:29]} 47. Nxb5 {[%clk 0:00:16]}  Ne6 {[%clk 0:00:28]} 48. Nd6 {[%clk 0:00:15]}  Nd4+ {[%clk 0:00:22]} 49. Ke4 {[%clk 0:00:14]}  Ne2 {[%clk 0:00:22]} 50. Ne8+ {[%clk 0:00:13]}  Kh6 {[%clk 0:00:21]} 51. Nf6 {[%clk 0:00:10]}  Nxg3+ {[%clk 0:00:12]} 52. Kf3 {[%clk 0:00:10]}  g5 {[%clk 0:00:05]} 53. Qh8+ {[%clk 0:00:09]}  Kg6 {[%clk 0:00:06]} 54. Qh7# {[%clk 0:00:08]} 1-0


[Site "https://www.chess.com"]

[Event "Titled Tuesday Blitz November 16 2021"]
[White "Visakh N R"]
[Black "Korchmar, Vasiliy"]
[WhiteFideId "25012223"]
[BlackFideId "24131750"]
[WhiteElo "2454"]
[BlackElo "2370"]
[Result "1-0"]
[Round "05"]
[TimeControl "180+1"]
[Date "2021.11.16"]
[WhiteClock "0:00:05"]
[BlackClock "0:00:05"]

1. c4 {[%clk 0:02:58]}  c6 {[%clk 0:02:59]} 2. e4 {[%clk 0:02:54]}  d5 {[%clk 0:02:58]} 3. cxd5 {[%clk 0:02:55]}  cxd5 {[%clk 0:02:59]} 4. exd5 {[%clk 0:02:56]}  Nf6 {[%clk 0:02:59]} 5. Bb5+ {[%clk 0:02:55]}  Nbd7 {[%clk 0:02:58]} 6. Nc3 {[%clk 0:02:55]}  g6 {[%clk 0:02:59]} 7. Nf3 {[%clk 0:02:52]}  Bg7 {[%clk 0:02:59]} 8. d6 {[%clk 0:02:53]}  e6 {[%clk 0:02:46]} 9. O-O {[%clk 0:02:49]}  O-O {[%clk 0:02:45]} 10. b3 {[%clk 0:02:48]}  a6 {[%clk 0:02:32]} 11. Be2 {[%clk 0:02:40]}  b5 {[%clk 0:02:32]} 12. Bb2 {[%clk 0:02:24]}  Nb6 {[%clk 0:02:23]} 13. a4 {[%clk 0:02:12]}  b4 {[%clk 0:02:19]} 14. Na2 {[%clk 0:02:12]}  Qxd6 {[%clk 0:02:16]} 15. a5 {[%clk 0:02:07]}  Nbd5 {[%clk 0:02:15]} 16. Ne5 {[%clk 0:02:06]}  Bb7 {[%clk 0:02:04]} 17. Bf3 {[%clk 0:02:06]}  Rac8 {[%clk 0:01:54]} 18. Nc4 {[%clk 0:02:04]}  Qe7 {[%clk 0:01:44]} 19. g3 {[%clk 0:02:03]}  h5 {[%clk 0:01:41]} 20. Qe2 {[%clk 0:02:03]}  h4 {[%clk 0:01:40]} 21. Rac1 {[%clk 0:02:02]}  Rfd8 {[%clk 0:01:27]} 22. Rfe1 {[%clk 0:02:02]}  Bc6 {[%clk 0:01:17]} 23. Nb6 {[%clk 0:01:18]}  Nxb6 {[%clk 0:01:00]} 24. axb6 {[%clk 0:01:17]}  Qb7 {[%clk 0:00:52]} 25. Rxc6 {[%clk 0:00:38]}  Rxc6 {[%clk 0:00:53]} 26. Bxf6 {[%clk 0:00:32]}  Bxf6 {[%clk 0:00:52]} 27. Nxb4 {[%clk 0:00:32]}  Qxb6 {[%clk 0:00:18]} 28. Nxc6 {[%clk 0:00:19]}  Rd6 {[%clk 0:00:19]} 29. Ne5 {[%clk 0:00:10]}  Bxe5 {[%clk 0:00:15]} 30. Qxe5 {[%clk 0:00:09]}  Rxd2 {[%clk 0:00:16]} 31. Qe3 {[%clk 0:00:08]}  Qd6 {[%clk 0:00:07]} 32. gxh4 {[%clk 0:00:06]}  Rd3 {[%clk 0:00:07]} 33. Qe4 {[%clk 0:00:05]}  Rd4 {[%clk 0:00:03]} 34. Qe5 {[%clk 0:00:04]}  Qb4 {[%clk 0:00:03]} 35. Re4 {[%clk 0:00:02]}  Rxe4 {[%clk 0:00:01]} 36. Qxe4 {[%clk 0:00:03]}  Qxb3 {[%clk 0:00:02]} 37. Kg2 {[%clk 0:00:04]}  a5 {[%clk 0:00:02]} 38. Qa8+ {[%clk 0:00:04]}  Kg7 {[%clk 0:00:02]} 39. Qxa5 {[%clk 0:00:04]}  Qb2 {[%clk 0:00:03]} 40. Qc5 {[%clk 0:00:03]}  Qf6 {[%clk 0:00:03]} 41. Qg5 {[%clk 0:00:03]}  Qd4 {[%clk 0:00:03]} 42. h5 {[%clk 0:00:03]}  e5 {[%clk 0:00:03]} 43. hxg6 {[%clk 0:00:03]}  fxg6 {[%clk 0:00:03]} 44. Qg4 {[%clk 0:00:03]}  Qd6 {[%clk 0:00:03]} 45. Be4 {[%clk 0:00:04]}  Qf6 {[%clk 0:00:03]} 46. h4 {[%clk 0:00:04]}  Kh6 {[%clk 0:00:03]} 47. Kg3 {[%clk 0:00:04]}  g5 {[%clk 0:00:03]} 48. Qxg5+ {[%clk 0:00:03]}  Qxg5+ {[%clk 0:00:04]} 49. hxg5+ {[%clk 0:00:04]}  Kxg5 {[%clk 0:00:05]} 50. f3 {[%clk 0:00:05]} 1-0


[Site "https://www.chess.com"]

[Event "Titled Tuesday Blitz November 16 2021"]
[White "Andreikin, Dmitry"]
[Black "Sadhwani, Raunak"]
[WhiteFideId "4158814"]
[BlackFideId "35093487"]
[WhiteElo "2736"]
[BlackElo "2517"]
[Result "1/2-1/2"]
[Round "06"]
[TimeControl "180+1"]
[Date "2021.11.16"]
[WhiteClock "0:00:04"]
[BlackClock "0:00:02"]

1. d4 {[%clk 0:03:00]}  Nf6 {[%clk 0:03:00]} 2. c4 {[%clk 0:03:00]}  g6 {[%clk 0:03:00]} 3. Nc3 {[%clk 0:03:00]}  Bg7 {[%clk 0:03:00]} 4. e4 {[%clk 0:02:59]}  d6 {[%clk 0:03:00]} 5. h3 {[%clk 0:02:59]}  O-O {[%clk 0:02:59]} 6. Be3 {[%clk 0:02:59]}  c5 {[%clk 0:02:59]} 7. Nf3 {[%clk 0:02:59]}  cxd4 {[%clk 0:02:53]} 8. Nxd4 {[%clk 0:03:00]}  Nc6 {[%clk 0:02:53]} 9. Be2 {[%clk 0:02:59]}  Bd7 {[%clk 0:02:50]} 10. O-O {[%clk 0:02:57]}  Nxd4 {[%clk 0:02:47]} 11. Bxd4 {[%clk 0:02:58]}  Bc6 {[%clk 0:02:47]} 12. Qc2 {[%clk 0:02:53]}  a5 {[%clk 0:02:47]} 13. Rad1 {[%clk 0:02:48]}  a4 {[%clk 0:02:45]} 14. Rfe1 {[%clk 0:02:43]}  Qa5 {[%clk 0:02:38]} 15. Bf1 {[%clk 0:02:42]}  Nd7 {[%clk 0:02:38]} 16. Bxg7 {[%clk 0:02:40]}  Kxg7 {[%clk 0:02:39]} 17. Nd5 {[%clk 0:02:20]}  Rfe8 {[%clk 0:02:19]} 18. Re3 {[%clk 0:02:19]}  Rac8 {[%clk 0:02:07]} 19. h4 {[%clk 0:02:12]}  Bxd5 {[%clk 0:02:03]} 20. exd5 {[%clk 0:02:12]}  Nf6 {[%clk 0:02:00]} 21. Qe2 {[%clk 0:02:08]}  Rc7 {[%clk 0:01:29]} 22. g3 {[%clk 0:02:05]}  h5 {[%clk 0:01:26]} 23. Rd4 {[%clk 0:02:04]}  Qc5 {[%clk 0:01:21]} 24. Rf4 {[%clk 0:02:00]}  b5 {[%clk 0:01:13]} 25. Qf3 {[%clk 0:01:54]}  Rf8 {[%clk 0:00:59]} 26. cxb5 {[%clk 0:01:53]}  Qc1 {[%clk 0:00:46]} 27. Rxa4 {[%clk 0:01:43]}  Qxb2 {[%clk 0:00:32]} 28. Rb3 {[%clk 0:01:42]}  Qd2 {[%clk 0:00:32]} 29. b6 {[%clk 0:01:39]}  Rc1 {[%clk 0:00:29]} 30. b7 {[%clk 0:01:34]}  Qe1 {[%clk 0:00:29]} 31. Qg2 {[%clk 0:01:17]}  Nd7 {[%clk 0:00:29]} 32. Ra8 {[%clk 0:01:06]}  Rb1 {[%clk 0:00:22]} 33. Rxf8 {[%clk 0:00:47]}  Kxf8 {[%clk 0:00:22]} 34. Qh3 {[%clk 0:00:26]}  f5 {[%clk 0:00:22]} 35. Qg2 {[%clk 0:00:20]}  Rxb3 {[%clk 0:00:21]} 36. axb3 {[%clk 0:00:21]}  Qb4 {[%clk 0:00:22]} 37. Bc4 {[%clk 0:00:19]}  Qxb7 {[%clk 0:00:22]} 38. Qf1 {[%clk 0:00:20]}  Ne5 {[%clk 0:00:22]} 39. Qa1 {[%clk 0:00:17]}  Qb4 {[%clk 0:00:20]} 40. Kg2 {[%clk 0:00:16]}  Kf7 {[%clk 0:00:20]} 41. Qd4 {[%clk 0:00:16]}  Qe1 {[%clk 0:00:17]} 42. Bf1 {[%clk 0:00:15]}  Qb1 {[%clk 0:00:07]} 43. b4 {[%clk 0:00:15]}  Qb3 {[%clk 0:00:08]} 44. b5 {[%clk 0:00:14]}  Qf3+ {[%clk 0:00:08]} 45. Kg1 {[%clk 0:00:14]}  Qb3 {[%clk 0:00:08]} 46. Be2 {[%clk 0:00:13]}  Qxb5 {[%clk 0:00:06]} 47. Qe3 {[%clk 0:00:10]}  Qxd5 {[%clk 0:00:06]} 48. Qh6 {[%clk 0:00:10]}  Qe4 {[%clk 0:00:04]} 49. Qh7+ {[%clk 0:00:08]}  Ke6 {[%clk 0:00:05]} 50. Qg8+ {[%clk 0:00:08]}  Kd7 {[%clk 0:00:05]} 51. Qa2 {[%clk 0:00:09]}  Qd4 {[%clk 0:00:03]} 52. Qa8 {[%clk 0:00:07]}  Qe4 {[%clk 0:00:02]} 53. Bb5+ {[%clk 0:00:06]}  Ke6 {[%clk 0:00:02]} 54. Qg8+ {[%clk 0:00:06]}  Kf6 {[%clk 0:00:02]} 55. Qh8+ {[%clk 0:00:06]}  Ke6 {[%clk 0:00:02]} 56. Qg8+ {[%clk 0:00:07]}  Kf6 {[%clk 0:00:03]} 57. Qh8+ {[%clk 0:00:06]}  Ke6 {[%clk 0:00:03]} 58. Qc8+ {[%clk 0:00:04]}  Kf7 {[%clk 0:00:03]} 59. Qe8+ {[%clk 0:00:04]}  Kf6 {[%clk 0:00:02]} 60. Qh8+ {[%clk 0:00:04]} 1/2-1/2


[Site "https://www.chess.com"]

[Event "Titled Tuesday Blitz November 16 2021"]
[White "Bologan, Victor"]
[Black "Kamsky, Gata"]
[WhiteFideId "13900048"]
[BlackFideId "2000024"]
[WhiteElo "2472"]
[BlackElo "2645"]
[Result "1-0"]
[Round "06"]
[TimeControl "180+1"]
[Date "2021.11.16"]
[WhiteClock "0:00:06"]
[BlackClock "0:00:11"]

1. e4 {[%clk 0:03:00]}  e5 {[%clk 0:02:52]} 2. Nf3 {[%clk 0:03:00]}  Nc6 {[%clk 0:02:42]} 3. Bc4 {[%clk 0:02:59]}  Bc5 {[%clk 0:02:41]} 4. c3 {[%clk 0:02:59]}  Nf6 {[%clk 0:02:40]} 5. d3 {[%clk 0:02:59]}  d6 {[%clk 0:02:40]} 6. O-O {[%clk 0:02:55]}  a5 {[%clk 0:02:39]} 7. Bg5 {[%clk 0:02:28]}  h6 {[%clk 0:02:37]} 8. Be3 {[%clk 0:02:23]}  Bxe3 {[%clk 0:02:32]} 9. fxe3 {[%clk 0:02:23]}  O-O {[%clk 0:02:28]} 10. Nbd2 {[%clk 0:02:21]}  Be6 {[%clk 0:02:04]} 11. a4 {[%clk 0:01:47]}  Bxc4 {[%clk 0:01:56]} 12. Nxc4 {[%clk 0:01:45]}  Nd7 {[%clk 0:01:44]} 13. d4 {[%clk 0:01:32]}  Qe7 {[%clk 0:01:43]} 14. Qc2 {[%clk 0:01:05]}  b6 {[%clk 0:01:39]} 15. Rae1 {[%clk 0:01:02]}  g6 {[%clk 0:01:35]} 16. Qf2 {[%clk 0:00:48]}  Kh7 {[%clk 0:01:30]} 17. Qg3 {[%clk 0:00:46]}  Rae8 {[%clk 0:01:26]} 18. Qh3 {[%clk 0:00:42]}  Nf6 {[%clk 0:01:16]} 19. Nfd2 {[%clk 0:00:36]}  Kg7 {[%clk 0:01:11]} 20. Qh4 {[%clk 0:00:32]}  Nh5 {[%clk 0:01:04]} 21. Qxe7 {[%clk 0:00:28]}  Rxe7 {[%clk 0:01:01]} 22. d5 {[%clk 0:00:28]}  Nb8 {[%clk 0:00:43]} 23. b4 {[%clk 0:00:28]}  axb4 {[%clk 0:00:37]} 24. cxb4 {[%clk 0:00:28]}  Na6 {[%clk 0:00:35]} 25. Rb1 {[%clk 0:00:26]}  Ra8 {[%clk 0:00:34]} 26. a5 {[%clk 0:00:24]}  bxa5 {[%clk 0:00:33]} 27. Nxa5 {[%clk 0:00:23]}  Ree8 {[%clk 0:00:31]} 28. Nc6 {[%clk 0:00:22]}  Nb8 {[%clk 0:00:31]} 29. Ra1 {[%clk 0:00:22]}  Nd7 {[%clk 0:00:29]} 30. Ra5 {[%clk 0:00:17]}  Nb6 {[%clk 0:00:28]} 31. Rfa1 {[%clk 0:00:16]}  Nf6 {[%clk 0:00:26]} 32. Ra7 {[%clk 0:00:15]}  Rac8 {[%clk 0:00:26]} 33. h3 {[%clk 0:00:14]}  h5 {[%clk 0:00:26]} 34. Rb7 {[%clk 0:00:13]}  Ra8 {[%clk 0:00:24]} 35. Rba7 {[%clk 0:00:13]}  Rac8 {[%clk 0:00:23]} 36. Rb7 {[%clk 0:00:12]}  Ra8 {[%clk 0:00:24]} 37. Ra5 {[%clk 0:00:13]}  Rec8 {[%clk 0:00:22]} 38. Kf2 {[%clk 0:00:12]}  h4 {[%clk 0:00:21]} 39. Ke2 {[%clk 0:00:12]}  g5 {[%clk 0:00:22]} 40. Kd3 {[%clk 0:00:12]}  Nbd7 {[%clk 0:00:20]} 41. Kc4 {[%clk 0:00:09]}  Nb6+ {[%clk 0:00:19]} 42. Kb3 {[%clk 0:00:09]}  Nbd7 {[%clk 0:00:18]} 43. Ne7 {[%clk 0:00:09]}  Re8 {[%clk 0:00:18]} 44. Nf5+ {[%clk 0:00:09]}  Kg6 {[%clk 0:00:18]} 45. Rxa8 {[%clk 0:00:08]}  Rxa8 {[%clk 0:00:17]} 46. Rxc7 {[%clk 0:00:08]}  Ra1 {[%clk 0:00:17]} 47. Nxd6 {[%clk 0:00:08]}  Rg1 {[%clk 0:00:17]} 48. b5 {[%clk 0:00:07]}  Rxg2 {[%clk 0:00:18]} 49. N2c4 {[%clk 0:00:06]}  Rg3 {[%clk 0:00:18]} 50. b6 {[%clk 0:00:06]}  Nxb6 {[%clk 0:00:18]} 51. Nxb6 {[%clk 0:00:05]}  Rxh3 {[%clk 0:00:18]} 52. Nf5 {[%clk 0:00:04]}  Nxe4 {[%clk 0:00:17]} 53. Ne7+ {[%clk 0:00:04]}  Kg7 {[%clk 0:00:17]} 54. Nc4 {[%clk 0:00:03]}  Rf3 {[%clk 0:00:16]} 55. d6 {[%clk 0:00:03]}  Nxd6 {[%clk 0:00:15]} 56. Nxd6 {[%clk 0:00:02]}  h3 {[%clk 0:00:16]} 57. Nef5+ {[%clk 0:00:02]}  Kg6 {[%clk 0:00:15]} 58. Rxf7 {[%clk 0:00:02]}  h2 {[%clk 0:00:13]} 59. Rg7+ {[%clk 0:00:02]}  Kf6 {[%clk 0:00:13]} 60. Rh7 {[%clk 0:00:03]}  g4 {[%clk 0:00:11]} 61. Rh6+ {[%clk 0:00:03]}  Kg5 {[%clk 0:00:10]} 62. Rxh2 {[%clk 0:00:04]}  g3 {[%clk 0:00:10]} 63. Rg2 {[%clk 0:00:04]}  Kg4 {[%clk 0:00:11]} 64. Rxg3+ {[%clk 0:00:04]}  Rxg3 {[%clk 0:00:11]} 65. Nxg3 {[%clk 0:00:05]}  Kxg3 {[%clk 0:00:11]} 66. Kc3 {[%clk 0:00:05]}  Kf3 {[%clk 0:00:11]} 67. Kd3 {[%clk 0:00:06]} 1-0


[Site "https://www.chess.com"]